bitfinex/quotes_BTCUSD_20250324
["timestamp","ask_amount","ask_price","bid_price","bid_amount"]
[1742831178783,8e-07,88265.0,88264.0,1.1651004]
[1742831179196,0.0004129,88265.0,88264.0,1.1537714]
[1742831179393,0.0004129,88265.0,88264.0,0.7853004]
[1742831179657,0.0014129,88265.0,88264.0,0.7903004]
[1742831179881,0.0127419,88265.0,88264.0,0.005]
[1742831180093,0.35358954,88265.0,88264.0,0.005]
[1742831180303,0.35358954,88265.0,88254.0,0.01133]
[1742831180304,0.011329,88262.0,88254.0,0.01133]
[1742831180514,0.11467054,88265.0,88264.0,0.006]
[1742831180720,0.0004129,88265.0,88264.0,0.243921]
[1742831180919,0.0004129,88265.0,88261.0,0.23793]
[1742831181040,0.0004129,88265.0,88264.0,0.001]
[1742831181465,0.2270029,88265.0,88264.0,0.007]
[1742831181671,0.0004129,88265.0,88264.0,0.007]
[1742831181900,0.0004129,88265.0,88264.0,0.244921]
[1742831182097,0.0004129,88265.0,88264.0,0.238921]
[1742831182303,0.0004129,88265.0,88263.0,0.226595]
[1742831182511,0.0004129,88265.0,88263.0,0.237924]
[1742831182708,0.0004129,88265.0,88264.0,0.226592]
[1742831183075,0.0004129,88265.0,88263.0,0.237924]
[1742831183251,0.0117419,88265.0,88259.0,0.226603]
[1742831183457,0.226595,88263.0,88259.0,0.226603]
[1742831183663,0.011329,88264.0,88259.0,0.01133]
[1742831183857,0.0117419,88265.0,88261.0,0.2266]
[1742831183858,0.2383339,88265.0,88261.0,0.2266]
[1742831184012,0.237927,88262.0,88255.0,0.226613]
[1742831184218,0.01133,88259.0,88249.0,0.011331]
[1742831184420,0.01133,88261.0,88250.0,0.011331]
[1742831184621,0.01133,88261.0,88252.0,0.226623]
[1742831184859,0.01133,88261.0,88250.0,0.237957]
[1742831184860,0.237954,88252.0,88248.0,0.3]
[1742831185054,0.237943,88257.0,88253.0,0.22662]
[1742831185055,0.226613,88256.0,88253.0,0.22662]
[1742831185301,0.226613,88256.0,88251.0,0.24973146]
[1742831185503,0.237946,88255.0,88252.0,0.226623]
[1742831185721,0.237943,88257.0,88252.0,0.226623]
[1742831185868,0.237943,88256.0,88251.0,0.02510646]
[1742831186099,0.226623,88252.0,88251.0,0.02510646]
[1742831186439,0.237954,88252.0,88251.0,0.02310646]
[1742831187001,0.237954,88252.0,88251.0,0.02410646]
[1742831187196,0.237954,88252.0,88251.0,0.02310646]
[1742831187418,0.237954,88252.0,88247.0,0.5473794]
[1742831187419,0.237965,88248.0,88247.0,0.5473794]
[1742831187585,0.237986,88240.0,88239.0,0.4178994]
[1742831187995,0.226652,88241.0,88239.0,0.4178994]
[1742831188400,0.226652,88241.0,88239.0,0.44065135]
[1742831188818,0.226652,88241.0,88239.0,0.44265135]
[1742831189217,0.226652,88241.0,88239.0,0.44065135]
[1742831189422,0.226652,88241.0,88235.0,0.1411524]
[1742831189423,0.237997,88236.0,88235.0,0.0003394]
[1742831189846,0.35225464,88236.0,88235.0,0.0003394]
[1742831190701,0.35225464,88236.0,88235.0,0.00438061]
[1742831190905,0.35225464,88236.0,88235.0,0.00038061]
[1742831191468,0.48173464,88236.0,88235.0,0.00038061]
[1742831191674,0.35225464,88236.0,88235.0,0.00038061]
[1742831191875,0.48173464,88236.0,88235.0,0.00338061]
[1742831192082,0.35225464,88236.0,88235.0,0.00338061]
[1742831192281,0.48173464,88236.0,88235.0,0.00038061]
[1742831192696,0.48473464,88236.0,88235.0,0.00038061]
[1742831192889,0.35525464,88236.0,88235.0,0.00038061]
[1742831193153,0.240997,88236.0,88235.0,0.00038061]
[1742831193490,0.241997,88236.0,88235.0,0.00038061]
[1742831194602,0.238997,88236.0,88235.0,0.00038061]
[1742831194865,0.237997,88236.0,88235.0,0.00038061]
[1742831195091,0.001,88236.0,88235.0,0.00038061]
[1742831195262,0.001,88236.0,88235.0,0.23938061]
[1742831195457,0.001,88236.0,88235.0,0.35752761]
[1742831195873,0.001,88236.0,88235.0,0.13086061]
[1742831196096,0.238997,88236.0,88235.0,0.13086061]
[1742831196346,0.237997,88236.0,88235.0,0.00138061]
[1742831196758,0.237997,88236.0,88235.0,0.00038061]
[1742831197183,0.237997,88236.0,88235.0,0.00138061]
[1742831197615,0.35225464,88236.0,88235.0,0.00138061]
[1742831197782,0.35225464,88236.0,88235.0,0.00038061]
[1742831198182,0.35325464,88236.0,88235.0,0.00138061]
[1742831198618,0.35225464,88236.0,88235.0,0.00038061]
[1742831199125,0.35425464,88236.0,88235.0,0.00038061]
[1742831199585,0.35225464,88236.0,88235.0,0.00038061]
[1742831199852,0.35525464,88236.0,88235.0,0.00038061]
[1742831200640,0.35625464,88236.0,88235.0,0.00038061]
[1742831201750,0.35325464,88236.0,88235.0,0.00038061]
[1742831202114,0.35625464,88236.0,88235.0,0.00038061]
[1742831205923,0.241997,88236.0,88235.0,0.00038061]
[1742831206122,0.004,88236.0,88235.0,0.00038061]
[1742831206237,0.241997,88236.0,88235.0,0.00038061]
[1742831207276,0.240997,88236.0,88235.0,0.00038061]
[1742831208256,0.237997,88236.0,88235.0,0.00138061]
[1742831208411,0.239997,88236.0,88235.0,0.00138061]
[1742831209002,0.237997,88236.0,88235.0,0.00138061]
[1742831218555,0.02277357,88248.0,88235.0,0.00138061]
[1742831218767,0.0001697,88264.0,88254.0,0.0766]
[1742831218918,0.0001697,88264.0,88263.0,0.537924]
[1742831219123,0.0003394,88272.0,88271.0,0.011328]
[1742831219330,0.0003392,88302.0,88275.0,0.537892]
[1742831219527,4e-07,88279.0,88278.0,0.562884]
[1742831219826,4e-07,88279.0,88278.0,1.17704104]
[1742831220053,4e-07,88279.0,88278.0,1.19158189]
[1742831220262,4e-07,88279.0,88278.0,1.24638189]
[1742831220631,5e-07,88279.0,88278.0,1.24638189]
[1742831221542,5e-07,88279.0,88278.0,1.26935523]
[1742831221743,5e-07,88279.0,88278.0,1.27535523]
[1742831221970,5e-07,88279.0,88278.0,1.28135523]
[1742831223287,0.0003392,88302.0,88300.0,0.537825]
[1742831223514,0.0003392,88302.0,88300.0,1.73854154]
[1742831223515,0.000463,88301.0,88300.0,1.73854154]
[1742831223746,0.000463,88301.0,88300.0,0.9569789]
[1742831224901,0.000463,88301.0,88300.0,0.9579789]
[1742831226605,0.011787,88301.0,88300.0,0.9579789]
[1742831226779,0.000463,88301.0,88300.0,0.9579789]
[1742831227386,0.011787,88301.0,88300.0,0.9579789]
[1742831228571,0.000463,88301.0,88300.0,0.9579789]
[1742831229172,0.011787,88301.0,88300.0,0.54008]
[1742831230535,0.011787,88301.0,88300.0,0.001]
[1742831233936,0.238285,88301.0,88300.0,0.001]
[1742831234687,0.011787,88301.0,88295.0,0.011325]
[1742831234898,0.004463,88301.0,88300.0,0.2265]
[1742831235099,0.004463,88301.0,88298.0,0.226504]
[1742831235333,0.004463,88301.0,88297.0,0.237832]
[1742831235334,0.000463,88301.0,88300.0,0.011325]
[1742831235548,0.000463,88301.0,88300.0,0.237825]
[1742831235760,0.003463,88301.0,88300.0,0.237825]
[1742831235864,0.002463,88301.0,88300.0,0.237825]
[1742831236776,0.000463,88301.0,88300.0,0.2265]
[1742831236981,0.000463,88301.0,88300.0,0.237825]
[1742831237467,0.000463,88301.0,88298.0,0.001]
[1742831237848,0.2265,88300.0,88296.0,0.226509]
[1742831238049,0.000463,88301.0,88298.0,0.226505]
[1742831238258,0.000463,88301.0,88300.0,0.001]
[1742831238658,0.000463,88301.0,88299.0,0.226501]
[1742831239221,0.000463,88301.0,88300.0,0.237825]
[1742831239424,0.000463,88301.0,88299.0,0.237826]
[1742831240751,0.000463,88301.0,88300.0,0.001]
[1742831241732,0.000463,88301.0,88299.0,0.237826]
[1742831241935,0.000463,88301.0,88300.0,0.2265]
[1742831242786,0.000463,88301.0,88300.0,0.2275]
[1742831245693,0.000463,88301.0,88300.0,0.001]
[1742831245867,0.000463,88301.0,88300.0,0.2275]
[1742831247915,0.000463,88301.0,88300.0,0.238825]
[1742831248724,0.000463,88301.0,88300.0,0.24720404]
[1742831250109,0.000463,88301.0,88300.0,0.66146168]
[1742831251821,0.000463,88301.0,88300.0,1.07936058]
[1742831252208,0.000463,88301.0,88300.0,1.15556058]
[1742831253440,0.000463,88301.0,88300.0,1.19054633]
[1742831253816,0.000463,88301.0,88300.0,1.18954633]
[1742831254279,0.000463,88301.0,88300.0,1.19654633]
[1742831256591,0.000463,88301.0,88300.0,1.21108718]
[1742831256795,8e-07,88308.0,88307.0,0.237806]
[1742831257000,8e-07,88308.0,88307.0,1.02059024]
[1742831257213,8e-07,88308.0,88307.0,1.40350339]
[1742831257415,8e-07,88308.0,88307.0,1.4384452]
[1742831258219,8e-07,88308.0,88307.0,1.4444452]
[1742831258421,8e-07,88308.0,88307.0,1.4504452]
[1742831258623,8e-07,88308.0,88307.0,1.47262644]
[1742831260063,0.0001697,88337.0,88319.0,0.537773]
[1742831260271,0.0001697,88337.0,88319.0,1.73796954]
[1742831261145,0.0001697,88337.0,88319.0,1.73996954]
[1742831261377,0.0001697,88337.0,88319.0,1.82146954]
[1742831261580,0.0001697,88337.0,88319.0,1.87036954]
[1742831261865,0.0001697,88337.0,88319.0,1.88491039]
[1742831262667,0.0001697,88337.0,88319.0,1.88091039]
[1742831263042,0.0001697,88337.0,88319.0,1.88691039]
[1742831263444,0.0001697,88337.0,88319.0,1.88491039]
[1742831264508,0.0001697,88337.0,88319.0,1.88991039]
[1742831264882,0.0001697,88337.0,88319.0,1.88491039]
[1742831265345,0.0001697,88337.0,88319.0,1.89091039]
[1742831268492,0.0001697,88337.0,88319.0,1.91591039]
[1742831274109,0.0002097,88320.0,88319.0,1.91591039]
[1742831274325,0.0002097,88320.0,88319.0,1.89091039]
[1742831274578,0.0002097,88320.0,88319.0,1.44992954]
[1742831274806,0.0002097,88320.0,88319.0,1.74992954]
[1742831282708,0.0002097,88320.0,88319.0,1.62060954]
[1742831282862,0.0002097,88320.0,88319.0,1.74988954]
[1742831283988,0.0002097,88320.0,88319.0,1.62060954]
[1742831284187,0.0002097,88320.0,88319.0,1.74988954]
[1742831284807,0.3623807,88320.0,88319.0,0.012]
[1742831286129,0.3623807,88320.0,88319.0,0.006]
[1742831286324,0.3623807,88320.0,88319.0,0.009]
[1742831287584,0.3623807,88320.0,88319.0,0.006]
[1742831287786,0.237795,88311.0,88310.0,0.0003394]
[1742831289461,0.321095,88311.0,88310.0,0.0003394]
[1742831289661,0.48295264,88311.0,88310.0,0.0003394]
[1742831289866,0.48295264,88311.0,88310.0,4e-07]
[1742831290617,0.48295264,88311.0,88310.0,0.0010004]
[1742831290832,0.48295264,88311.0,88310.0,0.0040004]
[1742831291019,0.48295264,88311.0,88310.0,0.0010004]
[1742831291258,0.48295264,88311.0,88310.0,4e-07]
[1742831291403,0.50610916,88311.0,88310.0,4e-07]
[1742831292432,0.48295264,88311.0,88310.0,4e-07]
[1742831292625,0.48595264,88311.0,88310.0,4e-07]
[1742831292828,0.1339,88311.0,88310.0,4e-07]
[1742831292961,0.145223,88311.0,88310.0,4e-07]
[1742831293594,0.25948064,88311.0,88310.0,4e-07]
[1742831293938,0.25648064,88311.0,88310.0,4e-07]
[1742831294146,0.25948064,88311.0,88310.0,4e-07]
[1742831295954,0.29350864,88311.0,88310.0,4e-07]
[1742831297737,0.51998064,88311.0,88310.0,4e-07]
[1742831310348,0.52015034,88311.0,88310.0,4e-07]
[1742831318275,0.48612234,88311.0,88310.0,4e-07]
[1742831325691,0.0031697,88311.0,88310.0,0.2377974]
[1742831325874,0.0031697,88311.0,88310.0,0.6128974]
[1742831326011,0.0031697,88311.0,88310.0,0.72715504]
[1742831326215,0.0031697,88311.0,88310.0,1.14505394]
[1742831326439,0.0001697,88311.0,88310.0,1.14505394]
[1742831326847,0.0001697,88311.0,88310.0,1.15638493]
[1742831327261,0.0001697,88311.0,88310.0,1.1794302]
[1742831328777,0.0001697,88311.0,88310.0,1.1874302]
[1742831328978,0.0001697,88311.0,88310.0,1.19191061]
[1742831329182,0.2379647,88311.0,88310.0,0.44494457]
[1742831329389,0.2379647,88311.0,88310.0,0.0090004]
[1742831330278,0.2379647,88311.0,88310.0,0.0040004]
[1742831330478,0.2379647,88311.0,88310.0,4e-07]
[1742831331790,0.2379647,88311.0,88310.0,0.0020004]
[1742831332043,0.2379647,88311.0,88310.0,0.0060004]
[1742831334934,0.2379647,88311.0,88310.0,0.0040004]
[1742831335155,0.2399647,88311.0,88310.0,4e-07]
[1742831335379,0.2399647,88311.0,88310.0,0.0010004]
[1742831335794,0.2379647,88311.0,88310.0,0.0010004]
[1742831335997,0.2389647,88311.0,88310.0,0.0010004]
[1742831337720,0.35322234,88311.0,88310.0,0.0010004]
[1742831338665,0.35222234,88311.0,88310.0,0.0010004]
[1742831338864,0.35522234,88311.0,88310.0,0.0010004]
[1742831339279,0.35522234,88311.0,88310.0,4e-07]
[1742831344754,0.75536319,88311.0,88310.0,4e-07]
[1742831344963,0.237878,88280.0,88279.0,0.0003396]
[1742831345437,0.237878,88280.0,88279.0,0.0004632]
[1742831346475,0.2490607,88280.0,88279.0,0.0004632]
[1742831347497,0.36331834,88280.0,88279.0,0.0004632]
[1742831347700,0.36531834,88280.0,88279.0,0.0004632]
[1742831348068,0.36531834,88280.0,88279.0,2e-07]
[1742831348268,0.237881,88279.0,88278.0,6e-07]
[1742831348490,0.35213864,88279.0,88278.0,6e-07]
[1742831350119,0.35413864,88279.0,88278.0,6e-07]
[1742831350354,0.66867949,88279.0,88278.0,6e-07]
[1742831350610,0.69139358,88279.0,88278.0,6e-07]
[1742831351064,0.69739358,88279.0,88278.0,6e-07]
[1742831351270,0.81165122,88279.0,88278.0,6e-07]
[1742831351468,0.69739358,88279.0,88278.0,6e-07]
[1742831352327,0.7056936,88279.0,88278.0,6e-07]
[1742831352539,0.7106936,88279.0,88278.0,6e-07]
[1742831352960,0.7857936,88279.0,88278.0,6e-07]
[1742831353269,0.8355936,88279.0,88278.0,6e-07]
[1742831353506,0.97485124,88279.0,88278.0,6e-07]
[1742831354267,0.8545936,88279.0,88278.0,6e-07]
[1742831355084,0.8605936,88279.0,88278.0,6e-07]
[1742831355644,0.8585936,88279.0,88278.0,6e-07]
[1742831355896,0.8625936,88279.0,88278.0,6e-07]
[1742831356850,0.9919936,88279.0,88278.0,6e-07]
[1742831357051,1.10625124,88279.0,88278.0,6e-07]
[1742831357776,0.226654,88240.0,88239.0,0.0768]
[1742831358195,0.237986,88240.0,88239.0,0.0768]
[1742831359016,0.237986,88240.0,88239.0,0.0812121]
[1742831359230,0.237986,88240.0,88239.0,0.0044121]
[1742831360421,0.237986,88240.0,88239.0,0.0004121]
[1742831360858,0.237986,88240.0,88239.0,0.0024121]
[1742831361259,0.237986,88240.0,88239.0,0.0034121]
[1742831364680,0.237986,88240.0,88239.0,0.0024121]
[1742831365078,0.237986,88240.0,88239.0,0.0034121]
[1742831365397,0.237986,88240.0,88239.0,0.0014121]
[1742831365977,0.237986,88240.0,88239.0,0.0034121]
[1742831366715,0.35224364,88240.0,88239.0,0.0034121]
[1742831367803,0.35224364,88240.0,88239.0,0.0024121]
[1742831368278,0.35324364,88240.0,88239.0,0.0024121]
[1742831368485,0.35324364,88240.0,88239.0,0.0004121]
[1742831371640,0.35324364,88240.0,88239.0,0.0007517]
[1742831372263,0.36778449,88240.0,88239.0,0.0007517]
[1742831373475,0.36878449,88240.0,88239.0,0.0007517]
[1742831373686,0.36778449,88240.0,88239.0,0.0007517]
[1742831373868,0.36978449,88240.0,88239.0,0.0007517]
[1742831374229,0.37078449,88240.0,88239.0,0.0007517]
[1742831374447,0.36778449,88240.0,88239.0,0.0007517]
[1742831374825,0.37078449,88240.0,88239.0,0.0007517]
[1742831375476,0.35624364,88240.0,88239.0,0.0007517]
[1742831381184,0.67078449,88240.0,88239.0,7e-07]
[1742831382436,0.66978449,88240.0,88239.0,7e-07]
[1742831382837,0.67178449,88240.0,88239.0,7e-07]
[1742831383213,0.66878449,88240.0,88239.0,7e-07]
[1742831383415,0.67178449,88240.0,88239.0,7e-07]
[1742831384323,0.011333,88233.0,88232.0,5e-07]
[1742831384531,0.57194349,88233.0,88232.0,5e-07]
[1742831386288,0.87194349,88233.0,88232.0,5e-07]
[1742831387219,0.87694349,88233.0,88232.0,5e-07]
[1742831387421,0.87694349,88233.0,88218.0,7e-07]
[1742831387422,0.011335,88219.0,88218.0,7e-07]
[1742831387648,0.55260285,88212.0,88211.0,5e-07]
[1742831387794,0.67186049,88212.0,88211.0,5e-07]
[1742831387995,0.86221813,88212.0,88211.0,5e-07]
[1742831388286,0.86676113,88212.0,88211.0,5e-07]
[1742831388438,0.89176113,88212.0,88211.0,5e-07]
[1742831388657,0.238115,88192.0,88190.0,0.0003396]
[1742831388860,0.35237264,88192.0,88190.0,0.0003396]
[1742831389026,0.35237264,88192.0,88191.0,0.00021101]
[1742831389224,0.36691349,88192.0,88191.0,0.00021101]
[1742831389640,0.37836234,88192.0,88191.0,0.00021101]
[1742831390049,0.67836234,88192.0,88191.0,0.00021101]
[1742831391232,0.80784234,88192.0,88191.0,0.00021101]
[1742831391823,0.80984234,88192.0,88191.0,0.00021101]
[1742831392146,0.92409998,88192.0,88191.0,0.00021101]
[1742831393401,0.92209998,88192.0,88191.0,0.00021101]
[1742831393838,0.79461998,88192.0,88191.0,0.00021101]
[1742831394038,0.92409998,88192.0,88191.0,0.00021101]
[1742831394628,0.92209998,88192.0,88191.0,0.00021101]
[1742831395036,0.92509998,88192.0,88191.0,0.00021101]
[1742831395188,0.94740062,88192.0,88191.0,0.00021101]
[1742831395827,0.70366298,88192.0,88191.0,0.00021101]
[1742831396073,0.70466298,88192.0,88191.0,0.00021101]
[1742831396277,0.83414298,88192.0,88191.0,0.00021101]
[1742831396483,0.83114298,88192.0,88191.0,0.00021101]
[1742831396747,0.83214298,88192.0,88191.0,0.00021101]
[1742831396962,0.83514298,88192.0,88191.0,0.00021101]
[1742831402346,0.39112213,88192.0,88191.0,0.00021101]
[1742831402552,0.243115,88192.0,88191.0,0.00021101]
[1742831403579,0.240115,88192.0,88191.0,0.00021101]
[1742831403982,0.239115,88192.0,88191.0,0.00021101]
[1742831404391,0.238115,88192.0,88191.0,0.00021101]
[1742831404708,0.233615,88192.0,88191.0,0.00021101]
[1742831404890,0.235615,88192.0,88191.0,0.00021101]
[1742831406244,0.233615,88192.0,88191.0,0.00021101]
[1742831406448,0.34787264,88192.0,88191.0,0.00021101]
[1742831406649,0.34887264,88192.0,88191.0,0.00021101]
[1742831407441,0.34787264,88192.0,88191.0,0.00021101]
[1742831407646,0.34987264,88192.0,88191.0,0.00021101]
[1742831407908,0.35087264,88192.0,88191.0,0.00021101]
[1742831408314,0.34887264,88192.0,88191.0,0.00021101]
[1742831409722,0.35187264,88192.0,88191.0,0.00021101]
[1742831411867,0.45257048,88192.0,88191.0,0.00021101]
[1742831412279,0.36641349,88192.0,88191.0,0.00021101]
[1742831414048,0.35187264,88192.0,88191.0,0.00021101]
[1742831416006,0.36641349,88192.0,88191.0,0.00021101]
[1742831417227,0.36241349,88192.0,88191.0,0.00021101]
[1742831417453,0.36741349,88192.0,88191.0,0.00021101]
[1742831417672,0.37241349,88192.0,88191.0,0.00021101]
[1742831417873,0.48667113,88192.0,88191.0,0.00021101]
[1742831419659,0.37241349,88192.0,88191.0,0.00021101]
[1742831420426,0.37241349,88192.0,88191.0,1e-08]
[1742831421591,0.50193349,88192.0,88191.0,1e-08]
[1742831422696,0.37241349,88192.0,88191.0,1e-08]
[1742831422898,0.50193349,88192.0,88191.0,1e-08]
[1742831425113,0.58881004,88192.0,88191.0,1e-08]
[1742831425722,0.50193349,88192.0,88191.0,1e-08]
[1742831429432,0.243615,88192.0,88191.0,1e-08]
[1742831429867,0.01,88192.0,88191.0,0.23811901]
[1742831430111,0.0115058,88211.0,88207.0,0.311336]
[1742831430112,0.0001698,88211.0,88207.0,0.311336]
[1742831430327,0.0001698,88211.0,88207.0,0.791395]
[1742831430529,0.02123621,88208.0,88207.0,0.791395]
[1742831430942,0.02123621,88208.0,88207.0,0.786395]
[1742831431579,0.0001698,88211.0,88210.0,0.238067]
[1742831433533,0.0021698,88211.0,88210.0,0.238067]
[1742831433988,0.0001698,88211.0,88210.0,0.238067]
[1742831434359,0.0011698,88211.0,88210.0,0.238067]
[1742831434559,0.0011698,88211.0,88210.0,0.226731]
[1742831435979,0.226735,88209.0,88207.0,0.1238]
[1742831436182,0.226741,88207.0,88204.0,0.02263294]
[1742831436541,0.011336,88208.0,88204.0,0.02263294]
[1742831436542,0.238074,88208.0,88204.0,0.02263294]
[1742831436742,0.2278988,88211.0,88209.0,0.011336]
[1742831436743,0.0011698,88211.0,88209.0,0.011336]
[1742831437047,0.0001698,88211.0,88204.0,0.011337]
[1742831437219,0.226735,88209.0,88204.0,0.238082]
[1742831437421,0.226735,88209.0,88204.0,0.239082]
[1742831437663,0.226735,88209.0,88204.0,0.238082]
[1742831437900,0.226737,88208.0,88205.0,0.226743]
[1742831438041,0.226733,88210.0,88207.0,0.226739]
[1742831438241,0.226736,88208.0,88204.0,0.238082]
[1742831438544,0.011336,88209.0,88205.0,0.226743]
[1742831438792,0.011336,88209.0,88204.0,0.238082]
[1742831438793,0.226737,88208.0,88204.0,0.001]
[1742831439083,0.226737,88208.0,88203.0,0.011337]
[1742831440569,0.226737,88208.0,88204.0,0.226745]
[1742831441000,0.011337,88204.0,88203.0,0.001]
[1742831441215,0.011337,88206.0,88203.0,0.001]
[1742831441441,0.226739,88207.0,88203.0,0.227748]
[1742831441885,0.226739,88207.0,88203.0,0.226748]
[1742831442099,0.011336,88209.0,88204.0,0.238083]
[1742831442312,0.011336,88209.0,88204.0,0.001]
[1742831442313,0.238078,88206.0,88204.0,0.001]
[1742831442555,0.226738,88208.0,88204.0,0.001]
[1742831442770,0.226738,88208.0,88204.0,0.227746]
[1742831443557,0.226739,88207.0,88204.0,0.226746]
[1742831443833,0.226743,88206.0,88203.0,0.0003396]
[1742831443997,0.238073,88208.0,88204.0,0.226746]
[1742831444196,0.226741,88207.0,88204.0,0.226745]
[1742831444445,0.238072,88208.0,88203.0,0.2384256]
[1742831444752,0.226736,88208.0,88204.0,0.227746]
[1742831445105,0.226739,88207.0,88204.0,0.227746]
[1742831445311,0.226739,88207.0,88204.0,0.226746]
[1742831446131,0.226739,88207.0,88203.0,0.0003396]
[1742831446132,0.226747,88204.0,88203.0,0.0003396]
[1742831446538,0.238084,88204.0,88203.0,0.0003396]
[1742831446735,0.238084,88204.0,88203.0,0.0013396]
[1742831446944,0.226747,88204.0,88203.0,0.0013396]
[1742831447201,0.226747,88204.0,88203.0,0.0003396]
[1742831447446,0.226747,88204.0,88203.0,0.0033396]
[1742831448605,0.238084,88204.0,88203.0,0.0033396]
[1742831449593,0.226747,88204.0,88203.0,0.0033396]
[1742831450981,0.011336,88214.0,88203.0,0.0033396]
[1742831451198,0.011334,88226.0,88210.0,0.365667]
[1742831451438,0.011334,88225.0,88210.0,0.365667]
[1742831451610,0.226697,88224.0,88210.0,0.495107]
[1742831451818,0.238032,88223.0,88210.0,0.495107]
[1742831452023,0.011335,88221.0,88210.0,0.9130059]
[1742831452228,0.226716,88216.0,88210.0,0.6749389]
[1742831452434,0.011336,88214.0,88210.0,0.6749389]
[1742831452653,0.0011698,88211.0,88210.0,0.6749389]
[1742831452855,0.0011698,88211.0,88210.0,0.9016699]
[1742831453076,0.0001698,88211.0,88210.0,0.9016699]
[1742831453214,0.0001698,88211.0,88210.0,0.6749389]
[1742831453417,0.0001698,88211.0,88210.0,0.6779389]
[1742831453616,0.0001698,88211.0,88210.0,0.9046699]
[1742831453820,0.0001698,88211.0,88210.0,0.6779389]
[1742831454048,0.0001698,88211.0,88210.0,0.9076699]
[1742831455482,0.0001698,88211.0,88210.0,0.9190059]
[1742831455875,0.0001698,88211.0,88210.0,0.9076699]
[1742831456119,0.0001698,88211.0,88210.0,0.7800699]
[1742831456869,0.0001698,88211.0,88210.0,0.5533389]
[1742831457271,0.0001698,88211.0,88210.0,0.7800699]
[1742831457517,0.0001698,88211.0,88210.0,0.5533389]
[1742831457925,0.2268988,88211.0,88210.0,0.13544]
[1742831458131,0.2382348,88211.0,88210.0,0.006]
[1742831459142,0.2382348,88211.0,88210.0,0.003]
[1742831460736,0.226747,88204.0,88203.0,0.4182385]
[1742831460885,0.238084,88204.0,88203.0,0.4182385]
[1742831462074,0.238084,88204.0,88203.0,0.4212385]
[1742831462484,0.238084,88204.0,88203.0,0.4182385]
[1742831462695,0.238084,88204.0,88203.0,0.4202385]
[1742831463144,0.238084,88204.0,88203.0,0.4182385]
[1742831463403,0.239084,88204.0,88203.0,0.4182385]
[1742831463857,0.239084,88204.0,88203.0,0.0003396]
[1742831465226,0.001,88204.0,88203.0,0.0116766]
[1742831465431,0.001,88204.0,88203.0,0.31649274]
[1742831465640,0.001,88204.0,88203.0,0.3142256]
[1742831466275,0.0115058,88211.0,88208.0,0.226735]
[1742831466923,0.226732,88210.0,88208.0,0.226735]
[1742831467133,0.226744,88205.0,88203.0,0.0761396]
[1742831467343,0.238084,88204.0,88203.0,0.0013396]
[1742831467772,0.238084,88204.0,88203.0,0.0003396]
[1742831468536,0.316384,88204.0,88203.0,0.0003396]
[1742831469872,0.318384,88204.0,88203.0,0.0003396]
[1742831470052,0.43264164,88204.0,88203.0,0.0003396]
[1742831470273,0.43264164,88204.0,88203.0,0.0013396]
[1742831470466,0.240084,88204.0,88203.0,0.0013396]
[1742831470671,0.240084,88204.0,88203.0,0.0003396]
[1742831473825,0.44388249,88204.0,88203.0,0.0003396]
[1742831474025,0.67423196,88204.0,88203.0,6e-07]
[1742831474255,0.61992249,88204.0,88203.0,6e-07]
[1742831474973,0.61792249,88204.0,88203.0,6e-07]
[1742831475434,0.62292249,88204.0,88203.0,6e-07]
[1742831475651,0.62192249,88204.0,88203.0,6e-07]
[1742831475827,0.36688249,88204.0,88203.0,6e-07]
[1742831476236,0.37088249,88204.0,88203.0,6e-07]
[1742831477259,0.242084,88204.0,88203.0,6e-07]
[1742831477667,0.243084,88204.0,88203.0,6e-07]
[1742831478277,0.239084,88204.0,88203.0,6e-07]
[1742831478485,0.238084,88204.0,88203.0,6e-07]
[1742831478681,0.240084,88204.0,88203.0,6e-07]
[1742831478886,0.241084,88204.0,88203.0,6e-07]
[1742831479439,0.2412538,88204.0,88203.0,6e-07]
[1742831480023,0.2412538,88204.0,88203.0,0.2267496]
[1742831480024,0.0011698,88204.0,88203.0,0.2267496]
[1742831480221,0.0031698,88204.0,88203.0,0.3043496]
[1742831480350,0.0021698,88204.0,88203.0,0.0776006]
[1742831480698,0.0031698,88204.0,88203.0,0.0776006]
[1742831480850,0.0031698,88204.0,88203.0,0.3043496]
[1742831481053,0.0021698,88204.0,88203.0,0.3043496]
[1742831481287,0.0021698,88204.0,88203.0,0.3156866]
[1742831481441,0.0001698,88204.0,88203.0,0.3166866]
[1742831481671,0.0001698,88204.0,88203.0,0.0786006]
[1742831481884,0.0001698,88204.0,88203.0,0.0796006]
[1742831483311,0.0001698,88204.0,88203.0,0.3063496]
[1742831483516,0.0001698,88204.0,88203.0,0.3176866]
[1742831484046,0.0001698,88204.0,88203.0,0.48064424]
[1742831484385,4e-07,88211.0,88210.0,0.563067]
[1742831484591,4e-07,88211.0,88210.0,1.08356744]
[1742831485708,4e-07,88211.0,88210.0,1.05356744]
[1742831485823,4e-07,88211.0,88210.0,1.56566354]
[1742831486020,4e-07,88211.0,88210.0,1.57166354]
[1742831486859,4e-07,88211.0,88210.0,1.60166354]
[1742831487152,4e-07,88211.0,88210.0,1.60766354]
[1742831490123,0.0001698,88233.0,88232.0,0.011333]
[1742831490314,0.0001698,88233.0,88232.0,0.97656414]
[1742831491377,0.0001698,88233.0,88232.0,0.97756414]
[1742831491844,0.0001698,88233.0,88232.0,0.97956414]
[1742831492430,0.0001698,88233.0,88232.0,1.27956414]
[1742831493217,0.0001698,88233.0,88232.0,1.29073384]
[1742831493419,0.0001698,88233.0,88232.0,1.28873384]
[1742831493750,0.0001698,88233.0,88232.0,1.29273384]
[1742831493967,0.0001698,88233.0,88232.0,1.29173384]
[1742831494089,0.0001698,88233.0,88232.0,1.31462396]
[1742831494319,0.0001698,88233.0,88232.0,1.31862396]
[1742831494763,8e-07,88233.0,88232.0,1.32712862]
[1742831494960,8e-07,88233.0,88232.0,1.33212862]
[1742831495549,8e-07,88233.0,88232.0,1.32812862]
[1742831495804,8e-07,88233.0,88232.0,1.19872862]
[1742831495948,8e-07,88233.0,88232.0,1.33408862]
[1742831496480,8e-07,88233.0,88232.0,1.32508862]
[1742831496907,8e-07,88233.0,88232.0,1.33108862]
[1742831497068,8e-07,88233.0,88232.0,1.33008862]
[1742831497267,8e-07,88233.0,88232.0,1.32408862]
[1742831497467,8e-07,88233.0,88232.0,1.33008862]
[1742831497662,8e-07,88233.0,88232.0,1.33108862]